bitfinex-derivatives/quotes_SOLF0:USTF0_20260105
["timestamp","ask_amount","ask_price","bid_price","bid_amount"]
[1767628294925,2.87920544,136.36,136.27,0.9826589]
[1767628295228,9.48240544,136.36,136.27,7.5899589]
[1767628296023,86.76,136.37,136.29,0.9826589]
[1767628296421,93.3628,136.37,136.29,0.9826589]
[1767628296622,1.83872098,136.35,136.29,0.9826589]
[1767628296826,1.83872098,136.33,136.25,0.9826589]
[1767628297032,1.83872098,136.31,136.25,0.9826589]
[1767628297831,1.83872098,136.31,136.25,7.5910589]
[1767628298224,1.83872098,136.31,136.23,0.9826589]
[1767628298532,1.83872098,136.29,136.24,6.6089]
[1767628299325,1.83872098,136.29,136.23,0.9826589]
[1767628300629,1.83872098,136.29,136.23,7.5918589]
[1767628301929,1.83872098,136.29,136.24,6.6089]
[1767628302734,1.83872098,136.29,136.21,0.9826589]
[1767628303730,86.72,136.32,136.18,0.9826589]
[1767628303931,1.83872098,136.25,136.18,0.9826589]
[1767628304234,1.83872098,136.25,136.18,2.0178789]
[1767628304732,1.83872098,136.25,136.19,6.6113]
[1767628304932,1.83872098,136.25,136.18,2.0178789]
[1767628305730,1.83872098,136.23,136.18,8.6295789]
[1767628305941,1.83872098,136.22,136.18,1.03522]
[1767628307036,86.72,136.26,136.1,102.9077]
[1767628307037,1.83872098,136.2,136.12,0.9826589]
[1767628307536,1.83872098,136.2,136.12,7.5969589]
[1767628307841,1.83872098,136.19,136.12,7.5969589]
[1767628308337,1.83872098,136.19,136.13,7.5966589]
[1767628308731,1.83872098,136.19,136.13,0.9826589]
[1767628310835,1.83872098,136.21,136.13,7.5968589]
[1767628311035,1.83872098,136.23,136.14,0.9826589]
[1767628311239,1.83872098,136.25,136.15,2.82137988]
[1767628311425,1.83872098,136.25,136.18,0.9826589]
[1767628312438,211.00333792,136.27,136.15,0.9826589]
[1767628312636,4.52337203,136.26,136.15,0.9826589]
[1767628312832,97.87147203,136.26,136.16,6.6126]
[1767628313139,97.87147203,136.26,136.15,0.9826589]
[1767628313140,91.26337203,136.26,136.15,0.9826589]
[1767628313537,91.26337203,136.26,136.15,7.5958589]
[1767628314538,91.26337203,136.26,136.15,0.9826589]
[1767628315030,102.734,136.34,136.15,0.9826589]
[1767628315337,578.0846,136.35,136.15,0.9826589]
[1767628315338,6.6064,136.3,136.19,1.00874414]
[1767628318849,6.6064,136.3,136.16,102.865]
[1767628318850,93.3454,136.32,136.2,1.00874414]
[1767628319052,86.74,136.32,136.2,1.00874414]
[1767628319348,6.6056,136.31,136.2,1.00874414]
[1767628321248,86.74,136.32,136.2,1.00874414]
[1767628321448,102.7538,136.31,136.2,1.00874414]
[1767628321748,4.52337203,136.3,136.2,1.00874414]
[1767628322042,6.6071,136.28,136.2,1.00874414]
[1767628322241,4.52337203,136.3,136.2,1.00874414]
[1767628322547,189.4885,136.32,136.2,1.00874414]
[1767628322944,6.6063,136.3,136.2,1.00874414]
[1767628323139,189.4885,136.32,136.2,1.00874414]
[1767628323540,6.608,136.26,136.17,0.95852589]
[1767628323742,107.28507203,136.3,136.17,0.95852589]
[1767628324249,6.6075,136.27,136.18,0.95852589]
[1767628324953,107.28507203,136.3,136.12,6.65506593]
[1767628325251,6.6085,136.25,136.15,0.95852589]
[1767628325750,194.01187203,136.32,136.18,0.95852589]
[1767628326449,6.6064,136.3,136.2,7.56912589]
[1767628326651,91.26337203,136.32,136.2,0.95852589]
[1767628327151,6.6065,136.29,136.2,7.56932589]
[1767628327548,86.74,136.32,136.2,0.95852589]
[1767628327852,86.74,136.32,136.22,0.95852589]
[1767628329248,4.52337203,136.36,136.25,7.56672589]
[1767628329552,86.74,136.35,136.25,6.6082]
[1767628329751,86.74,136.35,136.23,7.56762589]
[1767628329955,189.4659,136.35,136.23,7.56762589]
[1767628330144,189.4659,136.35,136.23,0.95852589]
[1767628330654,107.26597203,136.33,136.2,0.95852589]
[1767628331057,4.52337203,136.3,136.17,0.95852589]
[1767628331257,86.72,136.29,136.17,0.95852589]
[1767628331647,6.6076,136.27,136.17,0.95852589]
[1767628332359,86.72,136.29,136.17,7.57072589]
[1767628332654,86.72,136.29,136.18,7.57032589]
[1767628332843,86.72,136.29,136.18,0.95852589]
[1767628333245,86.72,136.29,136.2,0.95852589]
[1767628334048,86.72,136.29,136.17,0.95852589]
[1767628334955,93.3266,136.29,136.18,6.6118]
[1767628335656,6.607,136.28,136.18,6.6118]
[1767628336555,86.72,136.29,136.19,7.56982589]
[1767628336756,86.72,136.29,136.19,0.95852589]
[1767628337356,86.72,136.29,136.2,7.56932589]
[1767628337559,86.72,136.29,136.2,0.95852589]
[1767628338058,86.72,136.29,136.22,6.6098]
[1767628338554,4.52337203,136.35,136.25,0.95852589]
[1767628338747,86.74,136.34,136.25,0.95852589]
[1767628340558,86.74,136.34,136.27,6.6073]
[1767628341252,86.74,136.34,136.25,7.56652589]
[1767628341461,86.74,136.34,136.25,6.608]
[1767628342653,93.3442,136.34,136.25,6.608]
[1767628343261,6.6048,136.33,136.23,0.95852589]
[1767628344258,86.74,136.34,136.25,0.95852589]
[1767628345262,86.74,136.34,136.26,6.6079]
[1767628345462,86.74,136.34,136.26,0.95852589]
[1767628345960,86.74,136.34,136.27,6.6074]
[1767628346660,86.74,136.34,136.28,6.6068]
[1767628351264,86.74,136.34,136.26,7.56642589]
[1767628351767,86.74,136.34,136.27,6.6074]
[1767628356483,86.74,136.34,136.28,6.6069]
[1767628356682,86.74,136.34,136.26,0.95852589]
[1767628357485,86.74,136.34,136.27,6.607]
[1767628357678,86.74,136.34,136.26,0.95852589]
[1767628358382,86.74,136.34,136.29,6.6064]
[1767628358582,86.74,136.34,136.27,0.92457391]
[1767628359276,86.74,136.34,136.3,6.606]
[1767628359986,86.7,136.37,136.3,6.606]
[1767628362390,86.7,136.37,136.31,6.6055]
[1767628362587,86.7,136.37,136.29,0.92457391]
[1767628362792,86.7,136.37,136.27,102.7798]
[1767628362793,2.87279374,136.44,136.33,0.92457391]
[1767628362983,89.57279374,136.44,136.33,0.92457391]
[1767628363485,86.7,136.44,136.33,0.92457391]
[1767628363690,2.87279374,136.43,136.33,0.92457391]
[1767628364587,2.87279374,136.43,136.36,6.603]
[1767628365388,2.87279374,136.43,136.34,0.92457391]
[1767628365994,2.87279374,136.43,136.36,6.6031]
[1767628367297,2.87279374,136.43,136.35,6.6029]
[1767628368196,2.87279374,136.43,136.36,6.6023]
[1767628368395,89.57279374,136.44,136.36,6.6023]
[1767628371700,2.87279374,136.42,136.34,0.92457391]
[1767628372491,86.7,136.44,136.36,6.6024]
[1767628372687,2.87279374,136.43,136.36,6.6024]
[1767628373796,2.87279374,136.43,136.34,7.52747391]
[1767628373997,2.87279374,136.41,136.34,0.92457391]
[1767628374299,2.87279374,136.41,136.3,0.92457391]
[1767628374796,2.87279374,136.41,136.33,6.6038]
[1767628377487,2.87279374,136.39,136.32,0.92457391]
[1767628379502,9.47399374,136.39,136.32,0.92457391]
[1767628380198,2.87279374,136.37,136.29,0.92457391]
[1767628380796,89.53279374,136.39,136.29,0.92457391]
[1767628381199,96.13399374,136.39,136.29,0.92457391]
[1767628381389,89.53279374,136.39,136.29,0.92457391]
[1767628381699,6.5995,136.43,136.32,1.01223826]
[1767628382001,86.66,136.44,136.32,1.01223826]
[1767628382300,93.2586,136.44,136.35,1.01223826]
[1767628382495,2.87279374,136.46,136.35,1.01223826]
[1767628383200,2.87279374,136.44,136.35,1.01223826]
[1767628383495,24.30101827,136.47,136.35,1.01223826]
[1767628383692,102.6306,136.46,136.35,1.01223826]
[1767628383893,2.87279374,136.44,136.35,1.01223826]
[1767628384097,6.5999,136.42,136.35,1.01223826]
[1767628384596,9.47179374,136.44,136.35,1.01223826]
[1767628384895,2.87279374,136.42,136.32,1.01223826]
[1767628385095,2.87279374,136.4,136.32,1.01223826]
[1767628385302,2.87279374,136.4,136.27,1.01223826]
[1767628385303,2.87279374,136.37,136.27,1.01223826]
[1767628386196,2.87279374,136.39,136.27,1.01223826]
[1767628386703,6.6016,136.38,136.29,1.01223826]
[1767628386998,2.87279374,136.37,136.29,1.01223826]
[1767628387997,6.6026,136.36,136.29,1.01223826]
[1767628388193,2.87279374,136.38,136.29,1.01223826]
[1767628388497,89.53279374,136.4,136.29,1.01223826]
[1767628388804,2.87279374,136.44,136.31,1.01223826]
[1767628389498,189.301,136.45,136.31,1.01223826]
[1767628389800,189.301,136.45,136.32,1.01223826]
[1767628389801,2.87279374,136.44,136.32,1.01223826]
[1767628390002,22.75065776,136.5,136.36,1.01223826]
[1767628390308,86.66,136.49,136.36,1.01223826]
[1767628390499,89.53279374,136.49,136.36,1.01223826]
[1767628391495,89.53279374,136.49,136.37,1.01223826]
[1767628391695,9.47029374,136.47,136.37,1.01223826]
[1767628392304,2.87279374,136.47,136.37,7.61403826]
[1767628392506,93.2565,136.49,136.37,7.61403826]
[1767628392707,86.66,136.49,136.37,7.61403826]
[1767628393098,86.66,136.49,136.38,1.01223826]
[1767628393298,6.5967,136.48,136.38,1.01223826]
[1767628394206,86.66,136.49,136.39,1.01223826]
[1767628394809,93.2562,136.49,136.39,7.61313826]
[1767628394998,93.2562,136.49,136.39,1.01223826]
[1767628395604,93.2562,136.49,136.37,1.01223826]
[1767628396009,93.2562,136.49,136.39,7.61313826]
[1767628397406,93.2562,136.49,136.4,1.01223826]
[1767628398611,6.5969,136.48,136.4,1.01223826]
[1767628399412,102.6152,136.48,136.35,7.61483826]
[1767628399709,7.32596638,136.47,136.35,1.01223826]
[1767628399910,6.5981,136.45,136.35,1.01223826]
[1767628400609,7.32596638,136.47,136.35,1.01223826]
[1767628400610,6.5986,136.44,136.35,1.01223826]
[1767628401619,93.2386,136.44,136.32,87.57223826]
[1767628401910,102.6681,136.41,136.29,1.01223826]
[1767628403511,6.602,136.37,136.29,1.01223826]
[1767628404411,86.64,136.38,136.29,1.01223826]
[1767628406406,93.2416,136.38,136.29,1.01223826]
[1767628407316,6.6021,136.37,136.29,1.01223826]
[1767628408224,6.6021,136.37,136.26,7.61913826]
[1767628408403,86.64,136.38,136.28,1.01223826]
[1767628408925,6.6021,136.37,136.28,1.01223826]
[1767628411017,6.6021,136.37,136.29,0.99923291]
[1767628412618,6.6027,136.36,136.26,7.60613291]
[1767628412808,86.64,136.38,136.28,0.99923291]
[1767628413312,6.6027,136.36,136.28,0.99923291]
[1767628413919,86.64,136.38,136.28,0.99923291]
[1767628414217,6.6031,136.35,136.28,0.99923291]
[1767628414620,189.3328,136.38,136.28,0.99923291]
[1767628414621,6.6022,136.37,136.28,0.99923291]
[1767628415009,86.64,136.38,136.28,0.99923291]
[1767628416116,6.6004,136.41,136.31,6.6046]
[1767628416321,86.66,136.41,136.32,0.99923291]
[1767628417018,86.66,136.41,136.35,0.04824582]
[1767628417409,0.0496442,136.38,136.3,6.6049]
[1767628417823,0.0496442,136.38,136.29,0.99923291]
[1767628418215,6.6016,136.38,136.29,0.99923291]
[1767628418914,0.05120466,136.35,136.29,0.99923291]
[1767628419823,0.05120466,136.35,136.26,0.99923291]
[1767628420327,86.66,136.36,136.26,0.99923291]
[1767628420623,0.04959011,136.32,136.26,0.99923291]
[1767628420821,0.04959011,136.32,136.28,6.6062]
[1767628422319,0.04959011,136.32,136.27,0.99923291]
[1767628422720,4.51423326,136.4,136.27,0.99923291]
[1767628422920,4.51423326,136.4,136.3,7.60433291]
[1767628423122,86.66,136.41,136.31,0.99923291]
[1767628423817,6.6005,136.4,136.31,0.99923291]
[1767628424217,86.66,136.41,136.31,0.99923291]
[1767628424418,0.05103406,136.37,136.31,0.99923291]
[1767628425129,0.05103406,136.37,136.26,0.99923291]
[1767628425317,0.05103406,136.37,136.27,0.99923291]
[1767628425519,189.3311,136.41,136.27,0.99923291]
[1767628425718,6.602,136.37,136.29,0.99923291]
[1767628425921,0.0512857,136.33,136.29,0.99923291]
[1767628428219,6.6014,136.39,136.3,0.99923291]
[1767628429627,6.6014,136.39,136.3,7.60443291]
[1767628429828,6.6014,136.39,136.33,0.05265348]
[1767628430728,4.51423326,136.4,136.33,0.05265348]
[1767628431527,6.6021,136.37,136.33,0.05265348]
[1767628433930,6.6512958,136.36,136.28,0.93211008]
[1767628434424,102.6968,136.38,136.28,0.93211008]
[1767628434628,1.83913709,136.34,136.28,0.93211008]
[1767628434828,8.44273709,136.34,136.24,0.93211008]
[1767628435428,0.05645073,136.32,136.24,0.93211008]
[1767628435826,0.05645073,136.32,136.26,0.93211008]
[1767628436237,1.83913709,136.34,136.26,0.93211008]
[1767628436435,95.12183709,136.36,136.27,0.93211008]
[1767628436832,95.12183709,136.36,136.29,0.04890196]
[1767628437137,1.83913709,136.32,136.24,0.93211008]
[1767628438521,0.04740748,136.29,136.24,0.93211008]
[1767628439640,86.68,136.33,136.25,0.93211008]
[1767628439838,93.2839,136.33,136.25,0.93211008]
[1767628440026,86.68,136.33,136.25,0.98366428]
[1767628440231,189.4125,136.33,136.22,0.93211008]
[1767628440530,6.6059,136.29,136.22,0.93211008]
[1767628440932,107.26153264,136.31,136.22,0.93211008]
[1767628441138,6.6064,136.28,136.22,0.93211008]
[1767628441523,6.65856782,136.28,136.22,0.93211008]
[1767628442239,0.05216782,136.28,136.22,0.93211008]
[1767628442538,0.05216782,136.28,136.2,0.97044071]
[1767628442931,102.74,136.32,136.2,0.97044071]
[1767628443427,0.05364607,136.25,136.2,0.97044071]
[1767628443628,6.6057,136.3,136.2,0.97044071]
[1767628443823,6.6057,136.3,136.25,0.0474685]
[1767628444232,189.4125,136.33,136.25,0.0474685]
[1767628444233,102.7391,136.32,136.25,0.0474685]
[1767628444538,102.7441,136.31,136.22,0.97044071]
[1767628445238,6.6054,136.3,136.22,0.97044071]
[1767628446737,0.04800671,136.27,136.22,0.97044071]
[1767628448439,0.04800671,136.27,136.19,87.57044071]
[1767628448938,0.04800671,136.27,136.2,0.97044071]
[1767628449637,6.65500671,136.27,136.2,0.97044071]
[1767628449935,86.74800671,136.27,136.17,0.97044071]
[1767628450429,86.7,136.27,136.17,0.97044071]
[1767628450627,6.6084,136.24,136.17,0.97044071]
[1767628451642,86.7,136.27,136.14,35.28423707]
[1767628451643,6.66018211,136.22,136.14,36.25467778]
[1767628451939,6.66018211,136.22,136.11,6.61086428]
[1767628451940,0.05088211,136.22,136.09,0.97044071]
[1767628452441,86.72,136.22,136.09,0.97044071]
[1767628452939,86.72,136.22,136.12,0.97044071]
[1767628453436,91.23833264,136.22,136.12,0.97044071]
[1767628454142,0.05236591,136.18,136.12,0.97044071]
[1767628455142,0.05236591,136.18,136.09,7.58574071]
[1767628455143,6.66376591,136.18,136.09,7.58574071]
[1767628455742,194.05323264,136.22,136.09,0.97044071]
[1767628456148,0.04995238,136.15,136.09,0.97044071]
[1767628456542,0.04995238,136.15,136.1,7.58534071]
[1767628456742,0.04995238,136.15,136.1,0.97044071]
[1767628456945,6.6112,136.18,136.1,0.97044071]
[1767628457141,102.8411,136.18,136.07,0.97044071]
[1767628457346,0.04716003,136.14,136.07,0.97044071]
[1767628458147,0.04716003,136.14,136.05,0.97044071]
[1767628458650,1.84416228,136.15,136.06,0.97044071]
[1767628459052,0.04769175,136.11,136.06,0.97044071]
[1767628459552,1.84416228,136.15,136.07,6.6162]
[1767628459849,1.84416228,136.15,136.07,1.02171324]
[1767628460051,1.84416228,136.16,136.07,1.02171324]
[1767628460246,1.84416228,136.16,136.09,6.6154]
[1767628460958,1.84416228,136.16,136.11,0.04915845]
[1767628461249,1.84416228,136.18,136.11,0.04915845]
[1767628462552,1.84416228,136.18,136.11,6.66355845]
[1767628463158,1.84416228,136.19,136.12,6.614]
[1767628463346,1.84416228,136.19,136.11,0.04915845]
[1767628463551,1.84416228,136.19,136.09,0.97044071]
[1767628464054,1.84416228,136.19,136.14,0.0479923]
[1767628464451,86.76,136.2,136.09,0.97044071]
[1767628464658,1.84416228,136.17,136.09,0.97044071]
[1767628465051,86.76,136.2,136.09,0.97044071]
[1767628465052,1.84416228,136.18,136.09,0.97044071]
[1767628466357,1.84416228,136.16,136.09,0.97044071]
[1767628466558,0.05149222,136.15,136.09,0.97044071]
[1767628467857,0.05149222,136.15,136.06,8.46076228]
[1767628468154,1.84416228,136.14,136.06,0.97044071]
[1767628468660,86.78,136.15,136.06,0.97044071]
[1767628468858,0.05062222,136.11,136.06,0.97044071]
[1767628469059,0.05062222,136.11,136.07,0.97044071]
[1767628469361,86.78,136.15,136.08,0.97044071]
[1767628469558,1.84416228,136.18,136.09,0.97044071]
[1767628469753,1.84416228,136.18,136.1,0.97044071]
[1767628470663,1.84416228,136.18,136.13,0.04758712]
[1767628471055,6.6117,136.17,136.08,0.97913853]
[1767628471254,1.84416228,136.16,136.08,0.97913853]
[1767628472561,8.45636228,136.16,136.08,0.97913853]
[1767628473464,0.04914187,136.13,136.08,0.97913853]
[1767628475464,0.04914187,136.13,136.08,7.59513853]
[1767628475763,0.04914187,136.13,136.08,0.97913853]
[1767628476967,0.04914187,136.13,136.08,7.59513853]
[1767628478657,0.04914187,136.13,136.08,0.97913853]
[1767628478866,0.04914187,136.13,136.06,6.6165]
[1767628479067,0.04914187,136.13,136.05,0.97913853]
[1767628479968,1.84416228,136.12,136.05,0.97913853]
[1767628480464,189.6237,136.18,136.05,0.97913853]
[1767628480776,2.88274546,136.17,136.06,0.97913853]
[1767628481067,89.68274546,136.17,136.06,0.97913853]
[1767628481269,0.04827117,136.13,136.06,0.97913853]
[1767628481665,0.04827117,136.13,136.07,7.59543853]
[1767628482162,6.6126,136.16,136.07,7.59543853]
[1767628482467,0.04894708,136.11,136.07,7.59543853]
[1767628484475,0.04894708,136.11,136.07,0.97913853]
[1767628484880,0.04894708,136.11,136.05,0.97913853]
[1767628485473,2.88274546,136.13,136.05,0.97913853]
[1767628486473,0.04649178,136.1,136.05,0.97913853]
[1767628486670,0.04649178,136.1,136.05,7.59663853]
[1767628487970,0.04649178,136.1,136.05,0.97913853]
[1767628488170,0.04649178,136.1,136.03,6.618]
[1767628488375,0.04649178,136.1,136.03,7.59713853]
[1767628489381,0.04649178,136.1,136.01,7.59803853]
[1767628489878,89.70274546,136.11,136.01,7.59803853]
[1767628490272,89.70274546,136.11,136.02,7.59793853]
[1767628490974,86.82,136.12,136.04,0.97913853]
[1767628491184,0.04863711,136.08,136.04,0.97913853]
[1767628492176,0.04863711,136.08,136.02,7.59763853]
[1767628493479,0.04863711,136.08,136.02,0.97913853]
[1767628494876,6.66473711,136.08,135.99,87.73632676]
[1767628495074,6.66473711,136.08,135.99,0.99632676]
[1767628495578,6.6168,136.07,135.99,0.99632676]
[1767628495969,86.82,136.06,135.96,0.99632676]
[1767628496376,9.50024546,136.05,135.96,0.99632676]
[1767628496577,0.04872273,136.02,135.96,0.99632676]
[1767628497085,0.04872273,136.02,135.96,7.61812676]
[1767628498082,0.04872273,136.02,135.98,0.99632676]
[1767628498577,86.84,136.05,135.98,0.99632676]
[1767628498977,0.04866753,136.01,135.98,0.99632676]
[1767628500787,0.04866753,136.01,135.92,0.96931582]
[1767628501187,89.72274546,136.05,135.92,0.96931582]
[1767628501678,6.6181,136.04,135.95,0.96931582]
[1767628501873,2.88274546,136.05,135.95,0.96931582]
[1767628502079,86.86,136.06,135.95,0.96931582]
[1767628502480,0.0476373,136.01,135.95,0.96931582]
[1767628502680,0.0476373,136.01,135.96,0.96931582]
[1767628503391,86.86,136.06,135.97,7.59061582]
[1767628503579,2.88274546,136.09,135.98,0.96931582]
[1767628503779,86.86,136.08,135.98,0.96931582]
[1767628503984,86.86,136.08,136.0,0.96931582]
[1767628504694,86.86,136.08,136.03,0.04732179]
[1767628505077,86.86,136.08,136.03,1.01663761]
[1767628506076,86.86,136.08,136.03,7.63493761]
[1767628506694,96.35684546,136.12,136.03,7.63493761]
[1767628506893,96.35684546,136.12,136.03,1.01663761]
[1767628507082,96.35684546,136.12,136.03,0.96931582]
[1767628507593,96.35684546,136.12,136.06,0.05465027]
[1767628507984,89.74274546,136.12,136.06,0.05465027]
[1767628508695,86.86,136.12,136.06,0.05465027]
[1767628511091,0.05135669,136.1,136.0,0.96931582]
[1767628511285,2.93410215,136.1,136.0,0.96931582]
[1767628511784,2.88274546,136.1,136.0,0.96931582]
[1767628512491,0.04905841,136.06,136.0,0.96931582]
[1767628512999,0.04905841,136.06,136.0,7.58911582]
[1767628515196,0.04905841,136.06,136.01,7.58861582]
[1767628515399,0.04905841,136.06,136.01,0.96931582]
[1767628515598,9.49784546,136.1,136.01,0.96931582]
[1767628515998,0.0520209,136.05,136.01,0.96931582]
[1767628516901,0.0520209,136.05,135.99,6.6199]
[1767628517097,0.0520209,136.05,135.99,7.58921582]
[1767628518302,0.0520209,136.05,136.0,0.96931582]
[1767628524297,0.0520209,136.05,135.96,199.27820974]
[1767628524298,6.6155,136.1,136.01,0.96931582]
[1767628524494,9.49824546,136.1,136.01,0.96931582]
[1767628524999,9.49824546,136.1,136.02,0.96931582]
[1767628525803,9.49824546,136.1,136.05,0.05145289]
[1767628526101,6.6156,136.09,136.05,0.05145289]
[1767628527604,6.6156,136.09,136.0,7.58921582]
[1767628527805,0.05385746,136.08,136.01,0.96931582]
[1767628529208,2.93660292,136.08,136.01,0.96931582]
[1767628529604,2.93660292,136.08,135.98,0.96931582]
[1767628529906,2.88274546,136.06,135.98,0.96931582]
[1767628530297,89.74274546,136.06,135.98,0.96931582]
[1767628530802,0.05318369,136.03,135.98,0.96931582]
[1767628531495,0.05318369,136.03,135.95,6.71145311]
[1767628531701,0.05318369,136.03,135.95,0.98017541]
[1767628532306,2.88274546,136.02,135.95,0.98017541]
[1767628533207,0.05012832,136.0,135.95,0.98017541]
[1767628535909,86.86,136.03,135.95,0.98017541]
[1767628536112,96.38114546,136.04,135.97,0.98017541]
[1767628537216,6.6186,136.03,135.97,0.98017541]
[1767628537606,0.0506044,136.01,135.97,0.98017541]
[1767628538519,89.76274546,136.06,135.97,0.98017541]
[1767628539316,6.6175,136.05,135.97,0.98017541]
[1767628539917,6.6175,136.05,136.0,0.04863956]
[1767628540617,1.84730803,136.04,136.0,0.04863956]
[1767628544718,1.84730803,136.06,136.0,1.02881497]
[1767628545217,1.84730803,136.08,136.0,1.02881497]
[1767628545816,1.84730803,136.08,136.0,0.98017541]
[1767628546422,1.84730803,136.08,136.03,0.04753783]
[1767628548726,1.84730803,136.09,136.03,0.04753783]
[1767628549428,8.46290803,136.09,136.03,0.04753783]
[1767628550527,93.4962,136.08,136.03,0.04753783]
[1767628551028,6.6162,136.08,136.03,0.04753783]
[1767628551325,1.84730803,136.09,136.03,1.02771324]
[1767628552631,8.46280803,136.09,136.03,1.02771324]
[1767628552830,6.6155,136.09,136.03,1.02771324]
[1767628553232,86.88,136.1,136.03,1.02771324]
[1767628553622,8.46230803,136.11,136.03,1.02771324]
[1767628553928,95.32230803,136.11,136.03,1.02771324]
[1767628554626,6.6141,136.12,136.03,1.02771324]
[1767628554819,86.86,136.11,136.03,1.02771324]
[1767628555129,86.86,136.11,136.03,0.98017541]
[1767628555329,6.6132,136.14,136.04,1.02151405]
[1767628555533,1.84730803,136.13,136.06,1.07219863]
[1767628561242,1.84730803,136.11,136.06,0.05068458]
[1767628562737,1.84730803,136.12,136.06,0.05068458]
[1767628564936,86.86,136.14,136.06,0.05068458]
[1767628565236,1.84730803,136.13,136.06,1.06651434]
[1767628567243,1.84730803,136.11,136.06,0.05068458]
[1767628567544,1.84730803,136.09,136.02,7.63432976]
[1767628568039,1.84730803,136.09,136.02,1.01582976]
[1767628569042,0.0533145,136.07,136.02,1.01582976]
[1767628570142,0.0533145,136.07,136.03,1.01582976]
[1767628572429,1.84730803,136.1,136.04,1.01582976]
[1767628572634,1.84730803,136.1,136.04,0.04911138]
[1767628573234,1.84730803,136.08,136.04,0.04911138]
[1767628573539,1.84730803,136.08,136.02,1.01582976]
[1767628573939,1.84730803,136.06,136.02,1.01582976]
[1767628574444,1.84730803,136.06,136.0,1.01582976]
[1767628574747,1.84730803,136.04,135.96,1.01582976]
[1767628575042,1.84730803,136.04,135.96,6.6218]
[1767628575247,1.84730803,136.04,135.97,1.01582976]
[1767628575743,1.84730803,136.02,135.97,1.01582976]
[1767628576743,1.84730803,136.0,135.94,7.63852976]
[1767628576948,1.84730803,136.0,135.94,1.01582976]
[1767628577746,102.9282,136.07,135.94,1.01582976]
[1767628577945,86.84,136.06,135.94,1.01582976]
[1767628578143,1.84730803,136.01,135.96,0.04767334]
[1767628578544,1.84730803,136.01,135.94,7.63852976]
[1767628578746,1.84730803,136.01,135.95,1.01582976]
[1767628579255,1.84730803,136.01,135.97,0.05045356]
[1767628579454,1.84730803,136.02,135.97,0.05045356]
[1767628579842,1.84730803,136.02,135.95,1.01582976]
[1767628580152,1.84730803,136.02,135.97,1.01582976]
[1767628580353,1.84730803,136.02,135.98,0.0547592]
[1767628580955,86.86,136.05,135.98,0.0547592]
[1767628581261,1.84730803,136.04,135.98,0.0547592]
[1767628582852,1.84730803,136.02,135.98,0.0547592]
[1767628583958,1.84730803,136.04,135.98,6.6755592]
[1767628584269,102.8748,136.14,135.99,1.01582976]
[1767628584454,1.84730803,136.09,136.0,1.01582976]
[1767628584760,1.84730803,136.09,136.05,0.05324225]
[1767628586564,1.84730803,136.09,136.01,7.63512976]
[1767628586765,0.04752093,136.08,136.01,7.63512976]
[1767628586960,0.04752093,136.08,136.01,1.01582976]
[1767628587168,1.84730803,136.07,135.99,7.63602976]
[1767628588162,0.04769979,136.04,135.99,7.63602976]
[1767628588352,0.04769979,136.04,136.0,6.6198]
[1767628589467,0.04769979,136.04,135.99,1.01582976]
[1767628589966,0.04769979,136.04,135.97,1.01582976]
[1767628590360,0.04769979,136.04,135.97,7.63702976]
[1767628591864,0.04769979,136.04,135.98,7.6186351]
[1767628592274,1.84730803,136.05,135.98,7.6186351]
[1767628592672,1.84730803,136.05,136.0,0.9978351]
[1767628592867,1.84730803,136.07,136.0,0.9978351]
[1767628593067,1.84730803,136.08,136.0,0.9978351]
[1767628594674,1.84730803,136.08,136.03,0.04689639]
[1767628595876,1.84730803,136.1,136.03,0.04689639]
[1767628596071,8.46240803,136.1,136.03,0.04689639]
[1767628597676,1.84730803,136.08,136.03,0.04689639]
[1767628600489,9.49856704,136.11,136.03,0.04689639]
[1767628600685,2.88396704,136.11,136.03,6.66529639]
[1767628600890,96.35796704,136.13,136.04,0.9978351]
[1767628601590,6.6142,136.12,136.04,0.9978351]
[1767628601984,2.88396704,136.13,136.04,0.9978351]
[1767628602181,89.74396704,136.13,136.04,0.9978351]
[1767628602588,89.74396704,136.13,136.07,0.04791]
[1767628603788,96.35756704,136.13,136.07,0.04791]
[1767628604284,6.6141,136.12,136.07,0.04791]
[1767628604489,89.74396704,136.13,136.07,0.04791]
[1767628605690,96.35756704,136.13,136.07,0.04791]
[1767628607195,96.35756704,136.13,136.01,0.9978351]
[1767628607196,2.9391225,136.11,136.01,0.9978351]
[1767628607689,2.88396704,136.11,136.01,0.9978351]
[1767628608491,0.05446341,136.07,136.01,0.9978351]
[1767628608692,0.05446341,136.07,136.02,0.9978351]
[1767628609795,0.05446341,136.07,136.02,7.6166351]
[1767628610100,0.05446341,136.07,136.03,0.9978351]